[Event "10th Iberoamericano-ch 2024"]
[Site "Linares"]
[Date "2024.09.26"]
[Round "3.5"]
[White "Ladron De Guevara Pinto, Paolo"]
[Black "Oro, Faustino"]
[Result "1/2-1/2"]
[ECO "B15"]
[WhiteElo "2371"]
[BlackElo "2434"]
[Annotator "RC"]
[PlyCount "230"]
[EventDate "2024.09.25"]
[EventType "swiss"]
[EventCountry "ESP"]
[SourceTitle "playchess.com"]
[Source "ChessBase"]
[SourceQuality "1"]
[TimeControl "5400+30"]

1. e4 {[%emt 0:00:04]} c6 {[%emt 0:00:05]} 2. d4 {[%emt 0:01:29]} d5 {[%emt 0:00:05]} 3. Nc3 {[%emt 0:01:21]} dxe4 {[%emt 0:00:10]} 4. Nxe4 {[%emt 0:00:07]} Nf6 {[%emt 0:00:12]} 5. Nxf6+ {[%emt 0:00:53]} exf6 {[%emt 0:00:02]} 6. Be3 {[%emt 0:00:19]} Bd6 {[%emt 0:01:43]} 7. Bd3 {[%emt 0:00:08]} O-O {[%emt 0:01:36]} 8. Ne2 {[%emt 0:00:11]} Re8 {[%emt 0:00:30]} 9. O-O {[%emt 0:00:40]} Nd7 {[%emt 0:01:31]} 10. c4 {[%emt 0:01:58]} Nf8 {[%emt 0:01:46]} 11. Qd2 {[%emt 0:03:51]} Ng6 {[%emt 0:03:29]} 12. Ng3 {[%emt 0:14:18]} Bd7 {[%emt 0:18:27]} 13. Rad1 {[%emt 0:09:32]} a5 {[%emt 0:12:38]} 14. Qc2 {[%emt 0:04:45]} Qc7 {[%emt 0:01:14]} 15. Rfe1 {[%emt 0:02:45]} Rad8 {[%emt 0:04:37]} 16. Nf1 {[%emt 0:04:40]} Bg4 {[%emt 0:03:32]} 17. f3 {[%emt 0:04:24]} Be6 {[%emt 0:03:40]} 18. a3 {[%emt 0:10:47]} Nf8 {[%emt 0:10:22]} 19. Bf2 {[%emt 0:03:14]} Qb8 {[%emt 0:03:41]} 20. Be4 {[%emt 0:07:15]} h6 {[%emt 0:04:24]} 21. d5 {[%emt 0:02:25]} cxd5 {[%emt 0:00:06]} 22. Bxd5 {[%emt 0:05:08]} Bxd5 {[%emt 0:00:14]} 23. Rxe8 {[%emt 0:01:04]} Rxe8 {[%emt 0:00:02]} 24. Rxd5 {[%emt 0:01:02]} Bc7 {[%emt 0:00:43]} 25. b4 {[%emt 0:00:10]} axb4 {[%emt 0:00:17]} 26. axb4 {[%emt 0:00:04]} Ng6 {[%emt 0:00:32]} 27. c5 {[%emt 0:03:06]} Nf4 {[%emt 0:02:22]} 28. Rd2 {[%emt 0:00:09]} Qc8 {[%emt 0:04:22]} 29. Ng3 {[%emt 0:06:41]} Qe6 {[%emt 0:03:59]} 30. Qe4 {[%emt 0:00:05]} Qc8 {[%emt 0:00:51]} 31. Qc2 {[%emt 0:00:16]} Be5 {[%emt 0:01:39]} 32. Ne2 {[%emt 0:02:00]} Ne6 {[%emt 0:01:34]} 33. b5 {[%emt 0:00:32]} Qc7 {[%emt 0:01:03]} 34. g3 {[%emt 0:00:18]} Ng5 {[%emt 0:01:37]} 35. Kg2 {[%emt 0:00:33]} Qc8 {[%emt 0:00:38]} 36. Ng1 {[%emt 0:00:03]} Ne6 {[%emt 0:01:20]} 37. Qc4 {[%emt 0:03:56]} Bb8 {[%emt 0:02:17]} 38. c6 {[%emt 0:03:02]} bxc6 {[%emt 0:00:33]} 39. bxc6 {[%emt 0:00:04]} Re7 {[%emt 0:01:18]} 40. Ne2 {[%emt 0:02:24]} Rc7 {[%emt 0:02:15]} 41. Nd4 {[%emt 0:00:45]} Nxd4 {[%emt 0:00:13]} 42. Rxd4 {[%emt 0:00:04]} Rxc6 {[%emt 0:00:09]} 43. Qd3 {[%emt 0:00:04]} Bc7 {[%emt 0:00:14]} 44. Rc4 {[%emt 0:02:56]} Rxc4 {[%emt 0:00:18]} 45. Qxc4 {[%emt 0:00:04]} Qd7 {[%emt 0:00:09]} 46. Qd4 {[%emt 0:01:00]} Bd6 {[%emt 0:01:22]} 47. Qd5 {[%emt 0:00:38]} Qc7 {[%emt 0:00:26]} 48. Qa8+ {[%emt 0:00:18]} Kh7 {[%emt 0:00:52]} 49. Qa7 {[%emt 0:00:14]} Qc4 {[%emt 0:01:33]} 50. Qd4 {[%emt 0:00:06]} Qa6 {[%emt 0:00:27]} 51. Qb6 {[%emt 0:01:34]} Qa3 {[%emt 0:00:31]} 52. Qe3 {[%emt 0:00:20]} Qb4 {[%emt 0:01:56]} 53. Qb6 {[%emt 0:00:25]} Qxb6 {[%emt 0:00:56]} 54. Bxb6 {[%emt 0:00:05]} Kg6 {[%emt 0:00:08]} 55. g4 {[%emt 0:00:35]} f5 {[%emt 0:00:37]} 56. h3 {[%emt 0:00:10]} Be5 {[%emt 0:00:20]} 57. Bd8 {[%emt 0:00:22]} Bd6 {[%emt 0:00:25]} 58. Bh4 {[%emt 0:00:31]} Bf4 59. Be7 {[%emt 0:00:07]} Bg5 {[%emt 0:01:17]} 60. Bc5 {[%emt 0:00:05]} Bd8 {[%emt 0:00:19]} 61. Bd4 {[%emt 0:00:05]} Bc7 {[%emt 0:00:57]} 62. Bc3 {[%emt 0:00:18]} fxg4 {[%emt 0:00:33]} 63. fxg4 {[%emt 0:00:10]} Bd8 {[%emt 0:00:21]} 64. Kf3 {[%emt 0:00:28]} Bf6 {[%emt 0:00:14]} 65. Bb4 {[%emt 0:00:09]} Kh7 {[%emt 0:00:08]} 66. Bd2 {[%emt 0:00:22]} Bb2 {[%emt 0:00:21]} 67. Be3 {[%emt 0:00:52]} Kg8 {[%emt 0:00:20]} 68. Bc5 {[%emt 0:00:12]} g6 {[%emt 0:00:17]} 69. Be3 {[%emt 0:00:12]} Kg7 {[%emt 0:00:19]} 70. Bd2 {[%emt 0:00:09]} Bf6 {[%emt 0:00:07]} 71. Bb4 {[%emt 0:00:08]} Bg5 {[%emt 0:00:26]} 72. Bc3+ {[%emt 0:00:12]} Kf8 {[%emt 0:00:02]} 73. Bb4+ {[%emt 0:01:56]} Ke8 {[%emt 0:00:08]} 74. Ke4 {[%emt 0:01:03]} Kd7 {[%emt 0:00:14]} 75. Kd5 {[%emt 0:00:42]} Bc1 {[%emt 0:00:30]} 76. Bf8 {[%emt 0:00:42]} Bf4 {[%emt 0:00:24]} 77. Ke4 {[%emt 0:00:12]} Bd2 {[%emt 0:00:15]} 78. Kd5 {[%emt 0:00:05]} Ke8 {[%emt 0:00:16]} 79. Bc5 {[%emt 0:00:07]} Bg5 {[%emt 0:00:14]} 80. Bb4 {[%emt 0:00:06]} Be7 {[%emt 0:00:11]} 81. Bd2 {[%emt 0:00:11]} Bf8 {[%emt 0:00:03]} 82. Be3 {[%emt 0:00:13]} Bg7 {[%emt 0:00:07]} 83. Kd6 {[%emt 0:01:26]} Bf8+ {[%emt 0:00:21]} 84. Ke5 {[%emt 0:00:43]} Bg7+ {[%emt 0:00:16]} 85. Kd6 {[%emt 0:00:06]} Kf8 {[%emt 0:00:03]} 86. Bd2 {[%emt 0:00:40]} Kg8 {[%emt 0:00:11]} 87. Kd5 {[%emt 0:00:27]} Kh7 {[%emt 0:00:07]} 88. Ke4 {[%emt 0:00:07]} Ba1 {[%emt 0:00:06]} 89. Bc1 {[%emt 0:00:22]} Kg7 {[%emt 0:00:11]} 90. Bd2 {[%emt 0:00:14]} Bb2 {[%emt 0:00:07]} 91. Be3 {[%emt 0:00:09]} Bc3 {[%emt 0:00:05]} 92. Bc1 {[%emt 0:00:09]} Bb4 {[%emt 0:00:13]} 93. Be3 {[%emt 0:00:08]} Kf6 {[%emt 0:00:07]} 94. Bc1 {[%emt 0:01:16]} Bf8 {[%emt 0:00:15]} 95. Bd2 {[%emt 0:00:11]} Ke6 {[%emt 0:00:06]} 96. Bc1 {[%emt 0:00:07]} Bg7 {[%emt 0:00:13]} 97. Ba3 {[%emt 0:00:25]} Bf6 {[%emt 0:00:15]} 98. Bf8 {[%emt 0:00:26]} Bg5 {[%emt 0:00:04]} 99. Bb4 {[%emt 0:00:24]} f6 {[%emt 0:00:19]} 100. Ba3 {[%emt 0:00:36]} Bd2 {[%emt 0:00:14]} 101. Bb2 {[%emt 0:00:20]} f5+ {[%emt 0:00:18]} 102. gxf5+ {[%emt 0:00:11]} gxf5+ {[%emt 0:00:00]} 103. Kf3 {[%emt 0:00:33]} Kf7 {[%emt 0:00:06]} 104. Bd4 {[%emt 0:01:11]} Kg6 {[%emt 0:00:07]} 105. Bf2 {[%emt 0:00:35]} Kg5 {[%emt 0:00:07]} 106. Bg3 {[%emt 0:00:08]} h5 {[%emt 0:00:12]} 107. Bf2 {[%emt 0:00:29]} f4 {[%emt 0:00:17]} 108. Ke2 {[%emt 0:00:23]} Be3 {[%emt 0:00:08]} 109. Bxe3 {[%emt 0:00:13]} fxe3 {[%emt 0:00:02]} 110. Kxe3 {[%emt 0:00:06]} Kh4 {[%emt 0:00:03]} 111. Kf2 {[%emt 0:00:05]} Kxh3 {[%emt 0:00:04]} 112. Kg1 {[%emt 0:00:04]} Kg3 {[%emt 0:00:04]} 113. Kh1 {[%emt 0:00:04]} h4 {[%emt 0:00:03]} 114. Kg1 {[%emt 0:00:04]} h3 {[%emt 0:00:03]} 115. Kh1 {[%emt 0:00:03]} h2 {[%emt 0:00:04]} 1/2-1/2

[Event "10th Iberoamericano-ch 2024"]
[Site "Linares"]
[Date "2024.09.26"]
[Round "3.6"]
[White "Mingarro Carceller, Sergi"]
[Black "Garcia Ramos, Daniel"]
[Result "0-1"]
[ECO "B12"]
[WhiteElo "2273"]
[BlackElo "2415"]
[Annotator "RC"]
[PlyCount "100"]
[EventDate "2024.09.25"]
[EventType "swiss"]
[EventCountry "ESP"]
[SourceTitle "playchess.com"]
[Source "ChessBase"]
[SourceQuality "1"]
[TimeControl "5400+30"]

1. e4 {[%emt 0:00:04]} c6 {[%emt 0:05:06]} 2. d4 {[%emt 0:00:17]} d5 {[%emt 0:00:25]} 3. e5 {[%emt 0:00:15]} Bf5 {[%emt 0:00:10]} 4. Bd3 {[%emt 0:00:25]} Bxd3 {[%emt 0:00:16]} 5. Qxd3 {[%emt 0:00:08]} e6 {[%emt 0:00:38]} 6. c3 {[%emt 0:00:41]} c5 {[%emt 0:06:51]} 7. Ne2 {[%emt 0:00:44]} Nc6 {[%emt 0:00:26]} 8. O-O {[%emt 0:00:56]} h5 {[%emt 0:05:29]} 9. Nd2 {[%emt 0:05:40]} Rc8 {[%emt 0:05:43]} 10. Nf3 {[%emt 0:07:16]} Nh6 {[%emt 0:07:18]} 11. dxc5 {[%emt 0:12:36]} Bxc5 {[%emt 0:01:26]} 12. Ned4 {[%emt 0:00:51]} Qb6 {[%emt 0:13:46]} 13. b4 {[%emt 0:26:33]} Bxd4 {[%emt 0:02:48]} 14. cxd4 {[%emt 0:08:12]} Nf5 {[%emt 0:01:28]} 15. Rd1 {[%emt 0:03:01]} Nxb4 {[%emt 0:02:48]} 16. Qb3 {[%emt 0:03:08]} Nc2 {[%emt 0:02:03]} 17. Qxb6 {[%emt 0:00:28]} axb6 {[%emt 0:00:05]} 18. Rb1 {[%emt 0:00:05]} Rc6 {[%emt 0:00:47]} 19. h3 {[%emt 0:04:56]} h4 {[%emt 0:10:59]} 20. Kf1 {[%emt 0:03:06]} Kd7 {[%emt 0:01:44]} 21. Bg5 {[%emt 0:01:54]} Ra8 {[%emt 0:04:20]} 22. Bxh4 {[%emt 0:04:36]} Rxa2 {[%emt 0:04:01]} 23. g4 {[%emt 0:00:39]} Ra3 {[%emt 0:05:58]} 24. Kg2 {[%emt 0:02:55]} Rxf3 {[%emt 0:09:24]} 25. Kxf3 {[%emt 0:00:45]} Nxh4+ {[%emt 0:00:20]} 26. Kf4 {[%emt 0:03:41]} Kc7 {[%emt 0:03:48]} 27. Rb3 {[%emt 0:01:12]} Rc4 {[%emt 0:00:20]} 28. Rbd3 {[%emt 0:00:29]} Nb4 {[%emt 0:01:07]} 29. Rb3 {[%emt 0:00:40]} Nc6 {[%emt 0:00:37]} 30. Rbd3 {[%emt 0:00:31]} b5 {[%emt 0:01:03]} 31. Kg5 {[%emt 0:00:17]} Ng6 {[%emt 0:00:23]} 32. f4 {[%emt 0:00:21]} b4 {[%emt 0:00:27]} 33. f5 {[%emt 0:00:48]} Nf8 {[%emt 0:00:06]} 34. f6 {[%emt 0:04:03]} Nh7+ {[%emt 0:00:44]} 35. Kh5 {[%emt 0:00:08]} gxf6 {[%emt 0:00:10]} 36. Kh6 {[%emt 0:00:06]} Ng5 {[%emt 0:00:05]} 37. exf6 {[%emt 0:00:18]} Ne4 {[%emt 0:00:04]} 38. Kg7 {[%emt 0:00:31]} Nf2 {[%emt 0:02:22]} 39. g5 {[%emt 0:00:10]} Nxd3 {[%emt 0:01:37]} 40. g6 {[%emt 0:00:28]} Nf4 {[%emt 0:00:45]} 41. Kxf7 {[%emt 0:01:20]} Nd8+ {[%emt 0:00:07]} 42. Kg7 {[%emt 0:00:06]} Nh5+ {[%emt 0:01:58]} 43. Kf8 {[%emt 0:00:33]} Nxf6 {[%emt 0:00:28]} 44. g7 {[%emt 0:00:08]} b3 {[%emt 0:00:44]} 45. Rf1 {[%emt 0:01:11]} b2 {[%emt 0:00:11]} 46. Rxf6 {[%emt 0:02:51]} b1=Q {[%emt 0:00:05]} 47. g8=Q {[%emt 0:00:10]} Qb4+ {[%emt 0:00:04]} 48. Ke8 {[%emt 0:00:51]} Qd6 {[%emt 0:01:44]} 49. Qg7+ {[%emt 0:02:42]} Kc8 {[%emt 0:00:28]} 50. Rf8 {[%emt 0:00:38]} Rc7 {[%emt 0:00:21]} 0-1

[Event "10th Iberoamericano-ch 2024"]
[Site "Linares"]
[Date "2024.09.26"]
[Round "3.7"]
[White "Fernandez Sanchez, Fernando Miguel"]
[Black "Santos Flores, Alberto"]
[Result "1/2-1/2"]
[ECO "A13"]
[WhiteElo "2399"]
[BlackElo "2168"]
[Annotator "RC"]
[PlyCount "220"]
[EventDate "2024.09.25"]
[EventType "swiss"]
[EventCountry "ESP"]
[SourceTitle "playchess.com"]
[Source "ChessBase"]
[SourceQuality "1"]
[TimeControl "5400+30"]

1. c4 {[%emt 0:09:58]} e6 {[%emt 0:00:43]} 2. g3 {[%emt 0:00:06]} d5 {[%emt 0:00:08]} 3. Bg2 {[%emt 0:00:03]} dxc4 {[%emt 0:00:31]} 4. Qa4+ {[%emt 0:00:25]} Nd7 {[%emt 0:00:06]} 5. Qxc4 {[%emt 0:00:17]} a6 {[%emt 0:00:25]} 6. Qc2 {[%emt 0:00:23]} Ngf6 {[%emt 0:00:10]} 7. Nf3 {[%emt 0:03:37]} c5 {[%emt 0:00:04]} 8. O-O Qc7 {[%emt 0:00:04]} 9. d4 {[%emt 0:15:55]} Bd6 {[%emt 0:07:03]} 10. Rd1 {[%emt 0:05:54]} b5 {[%emt 0:07:56]} 11. Ne5 {[%emt 0:26:28]} Bb7 {[%emt 0:01:23]} 12. Nxd7 {[%emt 0:00:23]} Nxd7 {[%emt 0:00:37]} 13. d5 {[%emt 0:03:59]} exd5 {[%emt 0:05:47]} 14. Bxd5 {[%emt 0:00:39]} Bxd5 {[%emt 0:00:47]} 15. Rxd5 {[%emt 0:00:04]} Nf6 {[%emt 0:01:47]} 16. Rf5 {[%emt 0:01:14]} Qc6 {[%emt 0:29:04]} 17. b3 {[%emt 0:07:25]} O-O {[%emt 0:03:45]} 18. Bb2 {[%emt 0:01:23]} Be7 {[%emt 0:01:17]} 19. Nd2 {[%emt 0:00:22]} Rac8 {[%emt 0:04:20]} 20. Rc1 {[%emt 0:00:20]} Qd7 {[%emt 0:01:28]} 21. Nf1 {[%emt 0:01:08]} c4 {[%emt 0:01:39]} 22. Ne3 {[%emt 0:08:38]} cxb3 {[%emt 0:04:04]} 23. Qxb3 {[%emt 0:00:19]} Rxc1+ {[%emt 0:00:08]} 24. Bxc1 {[%emt 0:00:02]} Ng4 {[%emt 0:03:56]} 25. Qd5 {[%emt 0:06:05]} Qc7 {[%emt 0:03:03]} 26. Nxg4 {[%emt 0:00:10]} Qxc1+ {[%emt 0:00:04]} 27. Kg2 {[%emt 0:00:06]} Qc4 28. Ne3 {[%emt 0:07:09]} Qxd5+ {[%emt 0:01:50]} 29. Rxd5 {[%emt 0:00:03]} Rb8 {[%emt 0:02:27]} 30. Rd7 {[%emt 0:01:35]} Bc5 {[%emt 0:00:45]} 31. Nd5 {[%emt 0:00:19]} Kf8 {[%emt 0:07:42]} 32. Rc7 {[%emt 0:00:18]} Bd4 {[%emt 0:00:47]} 33. e3 {[%emt 0:00:09]} Rd8 {[%emt 0:05:03]} 34. Nb4 {[%emt 0:00:11]} Bb6 {[%emt 0:00:02]} 35. Rb7 {[%emt 0:00:24]} Rd6 {[%emt 0:00:58]} 36. Rb8+ {[%emt 0:00:38]} Bd8 {[%emt 0:00:11]} 37. Nxa6 {[%emt 0:00:35]} Rxa6 {[%emt 0:00:21]} 38. Rxd8+ {[%emt 0:00:02]} Ke7 {[%emt 0:00:04]} 39. Rb8 {[%emt 0:02:14]} Rxa2 {[%emt 0:00:09]} 40. Rxb5 {[%emt 0:00:02]} g6 {[%emt 0:00:23]} 41. g4 {[%emt 0:00:02]} h6 {[%emt 0:00:26]} 42. h4 {[%emt 0:00:14]} Kf6 {[%emt 0:00:23]} 43. h5 {[%emt 0:00:13]} g5 {[%emt 0:00:34]} 44. Rf5+ {[%emt 0:00:36]} Kg7 {[%emt 0:00:04]} 45. Kg3 Ra1 {[%emt 0:00:36]} 46. Kg2 {[%emt 0:00:19]} Ra2 {[%emt 0:00:06]} 47. Kf3 {[%emt 0:00:07]} Ra1 {[%emt 0:00:10]} 48. Rd5 {[%emt 0:00:19]} Rg1 {[%emt 0:00:46]} 49. Rc5 {[%emt 0:00:03]} Kf6 {[%emt 0:00:20]} 50. Rc6+ {[%emt 0:00:06]} Kg7 {[%emt 0:00:01]} 51. Rb6 {[%emt 0:00:06]} Kh7 {[%emt 0:00:31]} 52. Rf6 {[%emt 0:00:09]} Kg7 {[%emt 0:00:04]} 53. Ra6 {[%emt 0:00:03]} Kh7 {[%emt 0:00:15]} 54. Ra8 {[%emt 0:00:06]} Kg7 {[%emt 0:00:05]} 55. Ra2 {[%emt 0:00:09]} Kf6 {[%emt 0:00:32]} 56. Rb2 {[%emt 0:00:05]} Kg7 {[%emt 0:00:17]} 57. Rd2 {[%emt 0:00:05]} Kf6 {[%emt 0:00:20]} 58. Rd4 {[%emt 0:00:02]} Kg7 {[%emt 0:00:36]} 59. Ke2 {[%emt 0:00:04]} Ra1 {[%emt 0:00:31]} 60. Kd3 {[%emt 0:01:24]} Rg1 {[%emt 0:01:07]} 61. f3 {[%emt 0:00:30]} Rg2 {[%emt 0:01:54]} 62. Ke4 {[%emt 0:00:14]} Rg3 {[%emt 0:00:21]} 63. Rd5 {[%emt 0:00:09]} Kh7 {[%emt 0:00:43]} 64. Rd1 {[%emt 0:00:17]} Kg7 {[%emt 0:00:20]} 65. Rf1 {[%emt 0:02:04]} Rg2 {[%emt 0:00:08]} 66. Kf5 {[%emt 0:00:59]} Ra2 {[%emt 0:01:09]} 67. Rd1 {[%emt 0:00:26]} Ra5+ {[%emt 0:00:32]} 68. Ke4 {[%emt 0:00:03]} Ra8 {[%emt 0:01:34]} 69. Rd5 {[%emt 0:00:09]} Ra4+ {[%emt 0:00:04]} 70. Kd3 Ra3+ {[%emt 0:00:39]} 71. Ke2 {[%emt 0:00:48]} Ra2+ {[%emt 0:00:38]} 72. Rd2 {[%emt 0:00:18]} Ra4 {[%emt 0:00:02]} 73. Rd4 {[%emt 0:00:39]} Ra2+ {[%emt 0:00:14]} 74. Rd2 {[%emt 0:00:05]} Ra4 {[%emt 0:00:04]} 75. e4 {[%emt 0:00:06]} Ra3 {[%emt 0:00:51]} 76. Rd3 {[%emt 0:00:07]} Ra2+ {[%emt 0:00:23]} 77. Ke3 {[%emt 0:00:03]} Ra1 {[%emt 0:00:04]} 78. Rc3 {[%emt 0:05:03]} Ra5 {[%emt 0:00:38]} 79. Kd4 {[%emt 0:00:16]} Ra4+ {[%emt 0:00:12]} 80. Kd5 {[%emt 0:01:00]} Ra5+ {[%emt 0:00:11]} 81. Kd4 {[%emt 0:01:42]} Ra4+ {[%emt 0:00:04]} 82. Ke3 {[%emt 0:00:14]} Ra5 {[%emt 0:00:05]} 83. Rd3 {[%emt 0:00:35]} Kf6 {[%emt 0:00:39]} 84. Kd4 {[%emt 0:01:04]} Ra4+ {[%emt 0:00:12]} 85. Kd5 {[%emt 0:00:22]} Ra5+ {[%emt 0:00:06]} 86. Kc6 {[%emt 0:00:27]} Ra6+ {[%emt 0:00:36]} 87. Kb5 {[%emt 0:00:04]} Ra1 {[%emt 0:00:08]} 88. Rd5 {[%emt 0:00:22]} Rc1 {[%emt 0:00:32]} 89. Rf5+ {[%emt 0:00:44]} Kg7 {[%emt 0:00:13]} 90. Rc5 {[%emt 0:00:49]} Rf1 {[%emt 0:00:14]} 91. Rc3 {[%emt 0:00:51]} Kf6 {[%emt 0:00:05]} 92. Kc6 {[%emt 0:00:05]} Rd1 {[%emt 0:01:53]} 93. Rc5 {[%emt 0:00:34]} Rd3 {[%emt 0:00:57]} 94. Rf5+ {[%emt 0:00:13]} Kg7 {[%emt 0:00:01]} 95. e5 {[%emt 0:00:52]} Rd1 {[%emt 0:00:35]} 96. Kc5 Rd2 {[%emt 0:00:49]} 97. Rf6 {[%emt 0:01:17]} Rd1 {[%emt 0:00:36]} 98. Kc6 {[%emt 0:00:49]} Rd3 {[%emt 0:00:59]} 99. Kc7 {[%emt 0:00:22]} Rd1 {[%emt 0:00:30]} 100. Rf5 {[%emt 0:01:11]} Rd2 {[%emt 0:00:14]} 101. Kc6 {[%emt 0:00:07]} Rd3 {[%emt 0:00:36]} 102. Rf6 {[%emt 0:00:22]} Rd1 {[%emt 0:01:04]} 103. Rd6 {[%emt 0:00:13]} Re1 {[%emt 0:01:32]} 104. Kd5 {[%emt 0:00:35]} Re3 {[%emt 0:00:22]} 105. Rf6 {[%emt 0:00:10]} Ra3 {[%emt 0:00:28]} 106. Ke4 {[%emt 0:01:08]} Ra4+ {[%emt 0:00:10]} 107. Ke3 {[%emt 0:00:31]} Ra3+ {[%emt 0:00:26]} 108. Kd4 {[%emt 0:00:25]} Ra4+ {[%emt 0:00:15]} 109. Kd3 {[%emt 0:00:00]} Ra3+ {[%emt 0:00:11]} 110. Kd4 {[%emt 0:00:00]} Ra4+ {[%emt 0:00:27]} 1/2-1/2

[Event "10th Iberoamericano-ch 2024"]
[Site "Linares"]
[Date "2024.09.26"]
[Round "3.8"]
[White "Panelo, Marcelo"]
[Black "Pichot, Alan"]
[Result "0-1"]
[ECO "D39"]
[WhiteElo "2364"]
[BlackElo "2628"]
[Annotator "TA"]
[PlyCount "74"]
[EventDate "2024.09.25"]
[EventType "swiss"]
[EventCountry "ESP"]
[SourceTitle "playchess.com"]
[Source "ChessBase"]
[SourceQuality "1"]
[TimeControl "5400+30"]

{[%evp 11,74,25,39,35,33,43,23,29,44,-93,-71,-93,0,0,0,0,0,0,0,-12,14,25,18,22,89,70,85,64,66,0,0,0,0,0,0,-8,-8,-8,-8,-8,-8,-8,-8,-8,-8,-8,-7,-107,-110,-84,-35,-46,-46,-365,-360,-1698,-1329,-2153,-2118,-2583,-2493,-6203,-6406,-5409,-5138]} 1. d4 {[%emt 0:05:17]} Nf6 {[%emt 0:00:12]} 2. c4 {[%emt 0:00:24]} e6 {[%emt 0:00:12]} 3. Nf3 {[%emt 0:04:34]} d5 {[%emt 0:00:08]} 4. Nc3 {[%emt 0:00:12]} Bb4 {[%emt 0:00:25]} 5. Bg5 {[%emt 0:02:18]} dxc4 {[%emt 0:00:24]} 6. e4 {[%emt 0:06:33][%cal Be2e4,Be4e5][%mdl 32]} b5 {[%emt 0:00:42]} 7. e5 {[%emt 0:16:14]} (7. a4 {simplifies} c5 8. axb5 cxd4 9. Bxf6 Qxf6 10. Qxd4 Qxd4 11. Nxd4 Bc5 12. Rd1) 7... h6 $1 {[%emt 0:00:35]} 8. exf6 {[%emt 0:00:43]} hxg5 {[%emt 0:00:09]} 9. fxg7 {[%emt 0:00:03] White has an edge.} Rg8 {[%emt 0:00:08][%cal Oc8b7]} 10. g3 {[%emt 0:07:27]} (10. a4 $14 {stays ahead.}) 10... Bb7 {[%emt 0:05:14][%cal Og5g4] [#] ...g4! is the strong threat.} (10... g4 {feels hotter.} 11. Nh4 Bb7 12. Bg2 Bxg2 13. Nxg2 Nc6) 11. Bg2 {[%emt 0:00:06]} Rxg7 {[%emt 0:02:20] Black is more active.} (11... g4 $1 $17 {[%cal Rg4f3]} 12. Nh4 Bxg2 13. Nxg2 Nc6) 12. O-O $11 {[%emt 0:00:11]} Bxc3 {[%emt 0:01:26]} 13. bxc3 {[%emt 0:00:22]} Nd7 {[%emt 0:01:41]} 14. a4 {[%emt 0:03:18]} a6 {[%emt 0:00:25]} 15. Qe2 {[%emt 0:05:39][%cal Of3h4]} g4 {[%emt 0:29:05]} 16. Nh4 {[%emt 0:09:40]} Bxg2 {[%emt 0:00:57]} 17. Nxg2 {[%emt 0:00:05]} c6 {[%emt 0:14:07]} (17... Nb6 $11 {keeps the balance.}) 18. Qe4 {[%emt 0:05:13]} Rc8 {[%emt 0:05:59]} 19. axb5 {[%emt 0:01:17]} axb5 {[%emt 0:00:06]} 20. Nf4 {[%emt 0:03:33]} (20. f4 $1 $14) 20... Qg5 {[%emt 0:00:51]} 21. Rfe1 {[%emt 0:05:28][%cal Bf1e1,Be1e6,Be6c6][%mdl 32]} Kf8 {[%emt 0:04:55]} 22. Ra6 {[%emt 0:08:25]} Nf6 {[%emt 0:01:16][%cal Bd7f6,Bf6d5,Bd5c3][%mdl 32]} 23. Qg2 {[%emt 0:00:33][%cal Oe1e6] Rxe6! would now be deadly.} Nd5 {[%emt 0:07:35]} 24. Rxe6 {[%emt 0:00:46]} Qf5 {[%emt 0:07:42]} 25. Rexc6 {[%emt 0:06:41]} Qb1+ {[%emt 0:01:01]} 26. Qf1 {[%emt 0:00:06]} Qxf1+ {[%emt 0:00:03]} 27. Kxf1 {[%emt 0:00:05]} Rxc6 {[%emt 0:00:06]} 28. Rxc6 {[%emt 0:01:11]} Nxc3 {[%emt 0:00:05][%mdl 4096] Endgame. KRN-KRN} 29. Rc7 {[%emt 0:02:49] [#]} (29. Rc5 $11) 29... Rh7 $1 $17 {[%emt 0:01:19]} 30. Ng6+ {[%emt 0:05:24]} Ke8 {[%emt 0:04:58]} ({Much weaker is} 30... fxg6 $6 31. Rxh7 b4 32. Rb7 $11) 31. Ne5 $1 {[%emt 0:00:05]} Rxh2 {[%emt 0:00:13]} 32. Nxf7 {[%emt 0:01:02][%mdl 8192] White does not recover from this.} ({Only move:} 32. Rxf7 $15 Rh1+ 33. Kg2) 32... Ne4 $19 {[%emt 0:01:31]} 33. Kg1 {[%emt 0:00:20]} (33. Ne5 Rxf2+ 34. Ke1) 33... Rh7 {[%emt 0:01:17] Black is clearly winning.} ({Worse is} 33... Rxf2 34. Nd6+ Nxd6 35. Kxf2 $11) 34. Nd6+ {[%emt 0:00:32]} Nxd6 {[%emt 0:00:05]} 35. Rxh7 {[%emt 0:00:06]} c3 {[%emt 0:00:18] ( -> ...c2)} 36. Kg2 {[%emt 0:01:16]} c2 {[%emt 0:00:11]} 37. Rh1 {[%emt 0:00:06]} b4 {[%emt 0:00:05] Weighted Error Value: White=0.67/Black=0.11 (very precise) .  Loses game:     	White=1     	---        Mistake:       	White=4     	Black=2      Inaccurate:     	---       	Black=1      OK:         	White=8     	Black=13     Best:        	White=2     	Black=7      Strong:       	White=1     	Black=2} 0-1